[Event "FIDE Womens World Cup 2021"]
[Site "Sochi"]
[Date "2021.07.17"]
[Round "2.4"]
[White "Skripchenko, Almira"]
[Black "Sebag, Marie"]
[Result "1/2-1/2"]
[ECO "B51"]
[WhiteElo "2411"]
[BlackElo "2438"]
[Annotator "NA"]
[PlyCount "61"]
[EventDate "2021.07.12"]
[EventType "k.o."]
[EventCountry "RUS"]
[SourceTitle "playchess.com"]
[Source "ChessBase"]
[SourceQuality "1"]
[TimeControl "1500+10"]

1. e4 {[%emt 0:00:01]} c5 {[%emt 0:00:01]} 2. Nf3 {[%emt 0:00:05]} d6 {[%emt 0:00:02]} 3. Bb5+ {[%emt 0:00:08]} Nd7 {[%emt 0:00:22]} 4. d4 {[%emt 0:01:01]} cxd4 {[%emt 0:00:10]} 5. Qxd4 {[%emt 0:00:01]} a6 {[%emt 0:00:25]} 6. Bxd7+ {[%emt 0:00:10]} Bxd7 {[%emt 0:00:03]} 7. c4 {[%emt 0:00:02]} e5 {[%emt 0:00:07]} 8. Qd3 {[%emt 0:00:02]} b5 {[%emt 0:00:01]} 9. Nc3 {[%emt 0:00:19]} bxc4 {[%emt 0:00:05]} 10. Qxc4 {[%emt 0:00:02]} Be6 {[%emt 0:00:02]} 11. Qd3 {[%emt 0:00:17]} h6 {[%emt 0:01:14]} 12. O-O {[%emt 0:00:03]} Nf6 {[%emt 0:00:12]} 13. Rd1 {[%emt 0:00:01]} Be7 {[%emt 0:01:18]} 14. Ne1 {[%emt 0:00:05]} O-O {[%emt 0:03:27]} 15. Nc2 {[%emt 0:00:02]} Qb6 {[%emt 0:00:27]} 16. Ne3 {[%emt 0:00:08]} Rac8 {[%emt 0:00:17]} 17. b3 {[%emt 0:00:52]} Qb7 {[%emt 0:01:42]} 18. Ncd5 {[%emt 0:08:23]} Nxd5 {[%emt 0:00:52]} 19. Nxd5 {[%emt 0:00:15]} Bxd5 {[%emt 0:01:57]} 20. Qxd5 {[%emt 0:00:08]} Qxd5 {[%emt 0:00:25]} 21. Rxd5 {[%emt 0:00:02]} Rc6 {[%emt 0:00:58]} 22. Be3 {[%emt 0:02:39]} Rfc8 {[%emt 0:00:26]} 23. Rad1 {[%emt 0:00:37]} f6 {[%emt 0:00:20]} 24. f3 {[%emt 0:03:41]} Kf7 {[%emt 0:00:40]} 25. Kf2 {[%emt 0:00:02]} Ke6 {[%emt 0:00:45]} 26. Ke2 {[%emt 0:00:02]} Bd8 {[%emt 0:00:54]} 27. R1d2 {[%emt 0:00:33]} Bb6 {[%emt 0:02:00]} 28. Bxb6 {[%emt 0:00:06]} Rxb6 {[%emt 0:00:02]} 29. Ra5 {[%emt 0:00:11]} g6 {[%emt 0:01:13]} 30. g3 {[%emt 0:02:22]} Rcc6 {[%emt 0:03:03]} 31. Ke3 {[%emt 0:00:13]} 1/2-1/2

[Event "FIDE Womens World Cup 2021"]
[Site "Sochi"]
[Date "2021.07.17"]
[Round "2.4"]
[White "Salimova, Nurgyul"]
[Black "Paehtz, Elisabeth"]
[Result "1-0"]
[ECO "E11"]
[WhiteElo "2395"]
[BlackElo "2466"]
[Annotator "ChessBase"]
[PlyCount "115"]
[EventDate "2021.07.12"]
[EventType "k.o."]
[EventCountry "RUS"]
[SourceTitle "playchess.com"]
[Source "ChessBase"]
[SourceQuality "1"]
[TimeControl "1500+10"]

1. d4 {[%emt 0:00:02]} Nf6 {[%emt 0:00:01]} 2. c4 {[%emt 0:00:04]} e6 {[%emt 0:00:01]} 3. Nf3 {[%emt 0:00:02]} Bb4+ {[%emt 0:00:06]} 4. Nbd2 {[%emt 0:00:03]} c5 {[%emt 0:00:06]} 5. a3 {[%emt 0:00:46]} Bxd2+ {[%emt 0:00:02]} 6. Bxd2 {[%emt 0:01:01]} cxd4 {[%emt 0:00:01]} 7. Nxd4 {[%emt 0:00:42]} O-O {[%emt 0:00:31]} 8. e3 {[%emt 0:00:15]} d6 {[%emt 0:00:51]} 9. Be2 {[%emt 0:00:47]} a6 {[%emt 0:00:34]} 10. O-O {[%emt 0:00:10]} e5 {[%emt 0:00:01]} 11. Nb3 {[%emt 0:04:20]} Nc6 {[%emt 0:00:06]} 12. Qc2 {[%emt 0:00:02]} Be6 {[%emt 0:00:15]} 13. Rfd1 {[%emt 0:00:47]} Rc8 {[%emt 0:00:19]} 14. Bc3 {[%emt 0:00:42]} Qe7 {[%emt 0:00:23]} 15. e4 {[%emt 0:01:44]} Rfd8 {[%emt 0:01:01]} 16. Nd2 {[%emt 0:00:51]} Qc7 {[%emt 0:03:08]} 17. Qd3 {[%emt 0:02:55]} Na5 {[%emt 0:02:06]} 18. b3 {[%emt 0:02:55]} Nd7 {[%emt 0:00:02]} 19. Rac1 {[%emt 0:00:33]} Qb6 {[%emt 0:00:56]} 20. Qc2 {[%emt 0:01:20]} Nc6 {[%emt 0:00:05]} 21. Nf3 {[%emt 0:00:07]} Nf6 {[%emt 0:00:55]} 22. Rd2 {[%emt 0:01:00]} h6 {[%emt 0:00:36]} 23. Rcd1 {[%emt 0:00:27]} Qc7 {[%emt 0:00:17]} 24. Qb1 {[%emt 0:00:41]} Bg4 {[%emt 0:02:05]} 25. Nh4 {[%emt 0:01:07]} Be6 {[%emt 0:00:08]} 26. Nf5 {[%emt 0:00:51]} Bxf5 {[%emt 0:00:01]} 27. exf5 {[%emt 0:00:01]} Qe7 {[%emt 0:00:18]} 28. Bf3 {[%emt 0:00:08]} b5 {[%emt 0:00:56]} 29. cxb5 {[%emt 0:01:06]} axb5 {[%emt 0:00:01]} 30. a4 {[%emt 0:00:02]} b4 {[%emt 0:00:46]} 31. Bb2 {[%emt 0:00:14]} Na5 {[%emt 0:00:04]} 32. Rd3 {[%emt 0:00:02]} Rc5 {[%emt 0:01:54]} 33. Re3 {[%emt 0:00:30]} Qc7 {[%emt 0:00:17]} 34. h4 {[%emt 0:00:19]} h5 {[%emt 0:00:50]} 35. Qd3 {[%emt 0:01:05]} Rd7 {[%emt 0:01:08]} 36. Re2 {[%emt 0:00:09]} Nc6 {[%emt 0:00:31]} 37. Qe3 {[%emt 0:00:11]} Re7 {[%emt 0:00:38]} 38. Qg5 {[%emt 0:00:16]} Nd4 {[%emt 0:00:17]} 39. Bxd4 {[%emt 0:00:23]} exd4 {[%emt 0:00:01]} 40. Rxe7 {[%emt 0:00:05]} Qxe7 {[%emt 0:00:01]} 41. Qd2 {[%emt 0:00:12]} Rc3 {[%emt 0:00:22]} 42. Qxd4 {[%emt 0:00:02]} Rxb3 {[%emt 0:00:15]} 43. a5 {[%emt 0:00:00]} d5 {[%emt 0:00:31]} 44. Bxd5 {[%emt 0:01:04]} Nxd5 {[%emt 0:00:04]} 45. Qxd5 {[%emt 0:00:01]} Ra3 {[%emt 0:00:11]} 46. Rc1 {[%emt 0:00:14]} Qxh4 {[%emt 0:00:53]} 47. f6 {[%emt 0:00:13]} gxf6 {[%emt 0:00:19]} 48. Qd6 {[%emt 0:00:53]} Kg7 {[%emt 0:00:35]} 49. g3 {[%emt 0:00:12]} Qg5 {[%emt 0:00:48]} 50. Rc8 {[%emt 0:00:09]} Ra1+ {[%emt 0:00:46]} 51. Kh2 {[%emt 0:00:33]} Kh7 {[%emt 0:00:51]} 52. Qf8 {[%emt 0:00:13]} Qg7 {[%emt 0:00:09]} 53. Qxb4 {[%emt 0:00:03]} Ra2 {[%emt 0:00:37]} 54. Qb1+ {[%emt 0:00:03]} Qg6 {[%emt 0:00:08]} 55. Qxa2 {[%emt 0:00:02]} h4 {[%emt 0:00:01]} 56. Rc4 {[%emt 0:00:24]} hxg3+ {[%emt 0:00:02]} 57. fxg3 {[%emt 0:00:02]} Qd3 {[%emt 0:00:04]} 58. Qc2 {[%emt 0:00:02]} 1-0

[Event "FIDE Womens World Cup 2021"]
[Site "Sochi"]
[Date "2021.07.17"]
[Round "2.4"]
[White "Mammadova, Gulnar"]
[Black "Javakhishvili, Lela"]
[Result "1-0"]
[ECO "B06"]
[WhiteElo "2385"]
[BlackElo "2470"]
[Annotator "ChessBase"]
[PlyCount "55"]
[EventDate "2021.07.12"]
[EventType "k.o."]
[EventCountry "RUS"]
[SourceTitle "playchess.com"]
[Source "ChessBase"]
[SourceQuality "1"]
[TimeControl "1500+10"]

1. e4 {[%emt 0:00:02]} g6 {[%emt 0:00:02]} 2. d4 {[%emt 0:00:08]} Bg7 {[%emt 0:00:02]} 3. Nc3 {[%emt 0:00:02]} d6 {[%emt 0:00:04]} 4. Be3 {[%emt 0:00:12]} c6 {[%emt 0:00:09]} 5. Qd2 {[%emt 0:00:54]} Nd7 {[%emt 0:00:06]} 6. h4 {[%emt 0:02:31]} h6 {[%emt 0:01:56]} 7. f4 {[%emt 0:01:20]} Ngf6 {[%emt 0:00:56]} 8. Be2 {[%emt 0:00:07]} Nb6 {[%emt 0:01:31]} 9. Nf3 {[%emt 0:02:02]} Be6 {[%emt 0:02:05]} 10. b3 {[%emt 0:01:21]} Qc7 {[%emt 0:01:06]} 11. a4 {[%emt 0:01:02]} a6 {[%emt 0:01:03]} 12. Rd1 {[%emt 0:00:41]} Ng4 {[%emt 0:02:29]} 13. Bg1 {[%emt 0:00:41]} Nd7 {[%emt 0:00:15]} 14. h5 {[%emt 0:01:03]} Ndf6 {[%emt 0:01:10]} 15. hxg6 {[%emt 0:00:21]} fxg6 {[%emt 0:00:02]} 16. Nh4 {[%emt 0:00:39]} g5 {[%emt 0:00:57]} 17. Ng6 {[%emt 0:03:32]} Rg8 {[%emt 0:00:53]} 18. f5 {[%emt 0:01:02]} Bf7 {[%emt 0:00:26]} 19. Bxg4 {[%emt 0:01:09]} Nxg4 {[%emt 0:00:17]} 20. Qe2 {[%emt 0:00:02]} Nf6 {[%emt 0:01:16]} 21. e5 {[%emt 0:01:14]} dxe5 {[%emt 0:02:09]} 22. dxe5 {[%emt 0:00:41]} Bxg6 {[%emt 0:00:37]} 23. exf6 {[%emt 0:01:57]} Qg3+ {[%emt 0:05:26]} 24. Kf1 {[%emt 0:00:11]} Bxf6 {[%emt 0:00:09]} 25. Ne4 {[%emt 0:00:02]} Qf4+ {[%emt 0:00:01]} 26. Bf2 {[%emt 0:00:05]} Be5 {[%emt 0:00:57]} 27. fxg6 {[%emt 0:00:29]} Rxg6 {[%emt 0:00:01]} 28. Qf3 {[%emt 0:00:38]} 1-0

[Event "FIDE Womens World Cup 2021"]
[Site "Sochi"]
[Date "2021.07.17"]
[Round "2.5"]
[White "Paehtz, Elisabeth"]
[Black "Salimova, Nurgyul"]
[Result "1/2-1/2"]
[ECO "D45"]
[WhiteElo "2466"]
[BlackElo "2395"]
[Annotator "ChessBase"]
[PlyCount "71"]
[EventDate "2021.07.12"]
[EventType "k.o."]
[EventCountry "RUS"]
[SourceTitle "playchess.com"]
[Source "ChessBase"]
[SourceQuality "1"]
[TimeControl "600+10"]

1. d4 {[%emt 0:00:01]} Nf6 {[%emt 0:00:03]} 2. Nf3 {[%emt 0:00:01]} e6 {[%emt 0:00:01]} 3. c4 {[%emt 0:00:01]} d5 {[%emt 0:00:01]} 4. Nc3 {[%emt 0:00:01]} c6 {[%emt 0:00:01]} 5. e3 {[%emt 0:00:01]} Nbd7 {[%emt 0:00:01]} 6. Be2 {[%emt 0:00:02]} dxc4 {[%emt 0:00:02]} 7. a4 {[%emt 0:00:00]} Bd6 {[%emt 0:00:01]} 8. Bxc4 {[%emt 0:00:03]} O-O {[%emt 0:00:18]} 9. O-O {[%emt 0:00:02]} e5 {[%emt 0:00:42]} 10. Bb3 {[%emt 0:00:03]} Qc7 {[%emt 0:00:40]} 11. Qc2 {[%emt 0:01:31]} a5 {[%emt 0:01:56]} 12. h3 {[%emt 0:00:11]} Nb6 {[%emt 0:01:28]} 13. dxe5 {[%emt 0:00:11]} Bxe5 {[%emt 0:00:02]} 14. Nxe5 {[%emt 0:00:02]} Qxe5 {[%emt 0:00:01]} 15. e4 {[%emt 0:00:39]} Be6 {[%emt 0:00:32]} 16. Be3 {[%emt 0:01:17]} Nc4 {[%emt 0:00:48]} 17. Bxc4 {[%emt 0:00:12]} Bxc4 {[%emt 0:00:02]} 18. f4 {[%emt 0:00:44]} Qe6 {[%emt 0:00:47]} 19. Rfe1 {[%emt 0:00:03]} Rfe8 {[%emt 0:01:38]} 20. Bd4 {[%emt 0:01:06]} Rad8 {[%emt 0:00:47]} 21. Qf2 {[%emt 0:00:02]} Nd7 {[%emt 0:00:27]} 22. Rad1 {[%emt 0:01:19]} f6 {[%emt 0:00:30]} 23. Be3 {[%emt 0:00:33]} b5 {[%emt 0:00:26]} 24. axb5 {[%emt 0:00:36]} cxb5 {[%emt 0:00:01]} 25. Rd4 {[%emt 0:02:20]} Nb8 {[%emt 0:00:30]} 26. b3 {[%emt 0:00:36]} Rxd4 {[%emt 0:00:05]} 27. Bxd4 {[%emt 0:00:01]} Bxb3 {[%emt 0:00:03]} 28. Nxb5 {[%emt 0:00:02]} Qd7 {[%emt 0:00:37]} 29. Nc3 {[%emt 0:00:43]} Nc6 {[%emt 0:00:01]} 30. Bc5 {[%emt 0:00:25]} a4 {[%emt 0:00:29]} 31. Nxa4 {[%emt 0:00:23]} Qd3 {[%emt 0:00:56]} 32. Nb2 {[%emt 0:00:29]} Qc2 {[%emt 0:00:29]} 33. Qxc2 {[%emt 0:00:49]} Bxc2 {[%emt 0:00:01]} 34. Nc4 {[%emt 0:00:51]} Rxe4 {[%emt 0:00:14]} 35. Rxe4 {[%emt 0:00:02]} Bxe4 {[%emt 0:00:02]} 36. Nd2 {[%emt 0:00:02]} 1/2-1/2

[Event "FIDE Womens World Cup 2021"]
[Site "Sochi"]
[Date "2021.07.17"]
[Round "2.5"]
[White "Badelka, Olga"]
[Black "Matnadze, Ana"]
[Result "1/2-1/2"]
[ECO "D35"]
[WhiteElo "2418"]
[BlackElo "2421"]
[Annotator "NA"]
[PlyCount "135"]
[EventDate "2021.07.12"]
[EventType "k.o."]
[EventCountry "RUS"]
[SourceTitle "playchess.com"]
[Source "ChessBase"]
[SourceQuality "1"]
[TimeControl "600+10"]

1. d4 {[%emt 0:00:02]} Nf6 {[%emt 0:00:01]} 2. c4 {[%emt 0:00:01]} e6 {[%emt 0:00:01]} 3. Nc3 {[%emt 0:00:01]} d5 {[%emt 0:00:01]} 4. cxd5 {[%emt 0:00:01]} exd5 {[%emt 0:00:01]} 5. Bg5 {[%emt 0:00:02]} c6 {[%emt 0:00:02]} 6. e3 {[%emt 0:00:01]} Nbd7 {[%emt 0:00:01]} 7. Bd3 {[%emt 0:00:02]} Be7 {[%emt 0:00:04]} 8. Qc2 {[%emt 0:00:01]} Nf8 {[%emt 0:00:02]} 9. Nge2 {[%emt 0:00:01]} Ne6 {[%emt 0:00:02]} 10. Bh4 {[%emt 0:00:01]} g6 {[%emt 0:00:03]} 11. f3 {[%emt 0:00:01]} O-O {[%emt 0:00:06]} 12. O-O {[%emt 0:00:02]} b6 {[%emt 0:00:03]} 13. Rad1 {[%emt 0:00:04]} Bb7 {[%emt 0:00:01]} 14. Kh1 {[%emt 0:00:27]} Nh5 {[%emt 0:00:18]} 15. Bxe7 {[%emt 0:00:03]} Qxe7 {[%emt 0:00:01]} 16. e4 {[%emt 0:00:05]} Rad8 {[%emt 0:00:16]} 17. exd5 {[%emt 0:01:35]} cxd5 {[%emt 0:00:06]} 18. Qd2 {[%emt 0:00:11]} Qf6 {[%emt 0:00:48]} 19. Bc2 {[%emt 0:00:39]} Nhf4 {[%emt 0:00:47]} 20. Nxf4 {[%emt 0:01:00]} Nxf4 {[%emt 0:00:15]} 21. Rfe1 {[%emt 0:00:01]} Rfe8 {[%emt 0:00:24]} 22. Ba4 {[%emt 0:00:56]} Re6 {[%emt 0:00:48]} 23. Rxe6 {[%emt 0:00:47]} Nxe6 {[%emt 0:00:05]} 24. Bb3 {[%emt 0:00:38]} h5 {[%emt 0:00:44]} 25. Qe3 {[%emt 0:00:35]} Kg7 {[%emt 0:02:48]} 26. Kg1 {[%emt 0:00:18]} h4 {[%emt 0:00:48]} 27. Qe5 {[%emt 0:00:28]} Qxe5 {[%emt 0:00:30]} 28. dxe5 {[%emt 0:00:01]} Nc7 {[%emt 0:00:40]} 29. Kf2 {[%emt 0:01:15]} g5 {[%emt 0:00:07]} 30. Ne4 {[%emt 0:00:34]} g4 {[%emt 0:01:58]} 31. Nd6 {[%emt 0:00:23]} Ba8 {[%emt 0:00:01]} 32. fxg4 {[%emt 0:00:13]} f6 {[%emt 0:00:14]} 33. Nf5+ {[%emt 0:00:23]} Kf7 {[%emt 0:00:00]} 34. exf6 {[%emt 0:00:06]} Kxf6 {[%emt 0:00:04]} 35. Nxh4 {[%emt 0:00:05]} Ne6 {[%emt 0:00:11]} 36. Nf3 {[%emt 0:00:22]} Nc5 {[%emt 0:00:01]} 37. Bc2 {[%emt 0:00:18]} Rc8 {[%emt 0:00:01]} 38. g5+ {[%emt 0:00:34]} Ke6 {[%emt 0:00:02]} 39. h4 {[%emt 0:00:56]} Ne4+ {[%emt 0:00:16]} 40. Bxe4 {[%emt 0:00:01]} dxe4 {[%emt 0:00:01]} 41. Nd4+ {[%emt 0:00:07]} Ke5 {[%emt 0:00:09]} 42. Ke3 {[%emt 0:00:11]} Rh8 {[%emt 0:00:14]} 43. g3 {[%emt 0:00:42]} Bd5 {[%emt 0:00:10]} 44. Rf1 {[%emt 0:00:24]} Bxa2 {[%emt 0:00:40]} 45. b3 {[%emt 0:00:25]} Rc8 {[%emt 0:00:12]} 46. Rf5+ {[%emt 0:00:44]} Kd6 {[%emt 0:00:01]} 47. Rf6+ {[%emt 0:00:14]} Kd5 {[%emt 0:00:15]} 48. Rf5+ {[%emt 0:00:59]} Kd6 {[%emt 0:00:01]} 49. Kd2 {[%emt 0:00:50]} Bb1 {[%emt 0:00:45]} 50. Rf1 {[%emt 0:00:01]} Bd3 {[%emt 0:00:06]} 51. Rf7 {[%emt 0:00:08]} Ke5 {[%emt 0:00:54]} 52. Rd7 {[%emt 0:00:06]} Rf8 {[%emt 0:00:22]} 53. g6 {[%emt 0:00:14]} Rf2+ {[%emt 0:00:15]} 54. Ke3 {[%emt 0:00:19]} Rg2 {[%emt 0:00:02]} 55. h5 {[%emt 0:00:24]} Rxg3+ 56. Kf2 Rg5 {[%emt 0:00:40]} 57. g7 {[%emt 0:00:05]} Kf6 {[%emt 0:00:38]} 58. h6 {[%emt 0:00:09]} a5 {[%emt 0:00:21]} 59. h7 {[%emt 0:00:05]} e3+ {[%emt 0:00:01]} 60. Kxe3 {[%emt 0:00:07]} Bxh7 {[%emt 0:00:01]} 61. Rd6+ {[%emt 0:00:23]} Kf7 {[%emt 0:00:29]} 62. Rxb6 {[%emt 0:00:15]} Re5+ {[%emt 0:00:01]} 63. Kd2 {[%emt 0:00:17]} Kxg7 {[%emt 0:00:10]} 64. Rb7+ {[%emt 0:00:12]} Kg8 {[%emt 0:00:23]} 65. Rb5 {[%emt 0:00:07]} Re4 {[%emt 0:00:12]} 66. Nc6 {[%emt 0:00:17]} a4 {[%emt 0:00:13]} 67. bxa4 {[%emt 0:00:00]} Rxa4 {[%emt 0:00:01]} 68. Rb8+ {[%emt 0:00:04]} 1/2-1/2

[Event "FIDE Womens World Cup 2021"]
[Site "Sochi"]
[Date "2021.07.17"]
[Round "2.5"]
[White "Skripchenko, Almira"]
[Black "Sebag, Marie"]
[Result "1/2-1/2"]
[ECO "B51"]
[WhiteElo "2411"]
[BlackElo "2438"]
[Annotator "NA"]
[PlyCount "73"]
[EventDate "2021.07.12"]
[EventType "k.o."]
[EventCountry "RUS"]
[SourceTitle "playchess.com"]
[Source "ChessBase"]
[SourceQuality "1"]
[TimeControl "600+10"]

1. e4 {[%emt 0:00:01]} c5 {[%emt 0:00:01]} 2. Nf3 {[%emt 0:00:02]} d6 {[%emt 0:00:01]} 3. Bb5+ {[%emt 0:00:02]} Nd7 {[%emt 0:00:02]} 4. d4 {[%emt 0:00:13]} cxd4 {[%emt 0:00:09]} 5. Qxd4 {[%emt 0:00:02]} a6 {[%emt 0:00:03]} 6. Bxd7+ {[%emt 0:00:03]} Bxd7 {[%emt 0:00:03]} 7. c4 {[%emt 0:00:02]} Nf6 {[%emt 0:00:20]} 8. Bg5 {[%emt 0:00:06]} g6 {[%emt 0:00:28]} 9. Bxf6 {[%emt 0:00:27]} exf6 {[%emt 0:00:10]} 10. Nc3 {[%emt 0:00:03]} Be6 {[%emt 0:01:49]} 11. O-O {[%emt 0:01:20]} Bg7 {[%emt 0:00:10]} 12. Rad1 {[%emt 0:02:24]} O-O {[%emt 0:00:16]} 13. Qd3 {[%emt 0:00:16]} f5 {[%emt 0:02:03]} 14. exf5 {[%emt 0:01:41]} Bxf5 {[%emt 0:00:05]} 15. Qxd6 {[%emt 0:01:39]} Qxd6 {[%emt 0:00:43]} 16. Rxd6 {[%emt 0:00:02]} Bxc3 {[%emt 0:00:59]} 17. bxc3 {[%emt 0:00:01]} Rac8 {[%emt 0:00:11]} 18. Rd4 {[%emt 0:00:15]} Rc5 {[%emt 0:00:16]} 19. Re1 {[%emt 0:01:15]} Rfc8 {[%emt 0:01:40]} 20. Re7 {[%emt 0:02:01]} Rxc4 {[%emt 0:00:02]} 21. Rxb7 {[%emt 0:00:18]} Rxd4 {[%emt 0:01:22]} 22. Nxd4 {[%emt 0:00:02]} Rxc3 {[%emt 0:00:01]} 23. h3 {[%emt 0:00:11]} Bd3 {[%emt 0:00:32]} 24. Nb3 {[%emt 0:00:34]} Bb5 {[%emt 0:01:11]} 25. Nd4 {[%emt 0:00:05]} Rc1+ {[%emt 0:00:30]} 26. Kh2 {[%emt 0:00:04]} Bd3 {[%emt 0:00:03]} 27. f3 {[%emt 0:00:15]} Rc4 {[%emt 0:00:25]} 28. Rd7 {[%emt 0:00:36]} Ra4 {[%emt 0:00:04]} 29. Nb3 {[%emt 0:00:17]} Bc4 {[%emt 0:00:21]} 30. Rd4 {[%emt 0:00:10]} Bxb3 {[%emt 0:00:35]} 31. Rd8+ {[%emt 0:00:02]} Kg7 {[%emt 0:00:02]} 32. axb3 {[%emt 0:00:01]} Ra2 {[%emt 0:00:10]} 33. b4 {[%emt 0:00:09]} h5 {[%emt 0:00:02]} 34. Ra8 {[%emt 0:00:06]} Ra4 {[%emt 0:00:05]} 35. Rb8 {[%emt 0:00:17]} h4 {[%emt 0:00:03]} 36. Rb6 {[%emt 0:00:05]} Kh6 {[%emt 0:00:31]} 37. b5 {[%emt 0:00:11]} 1/2-1/2

[Event "FIDE Womens World Cup 2021"]
[Site "Sochi"]
[Date "2021.07.17"]
[Round "2.5"]
[White "Socko, Monika"]
[Black "Cramling, Pia"]
[Result "0-1"]
[ECO "E01"]
[WhiteElo "2393"]
[BlackElo "2459"]
[Annotator "ChessBase"]
[PlyCount "80"]
[EventDate "2021.07.12"]
[EventType "k.o."]
[EventCountry "RUS"]
[SourceTitle "playchess.com"]
[Source "ChessBase"]
[SourceQuality "1"]
[TimeControl "600+10"]

1. d4 {[%emt 0:00:01]} Nf6 {[%emt 0:00:01]} 2. c4 {[%emt 0:00:02]} e6 {[%emt 0:00:03]} 3. g3 {[%emt 0:00:02]} d5 {[%emt 0:00:03]} 4. Bg2 {[%emt 0:00:04]} Bb4+ {[%emt 0:00:02]} 5. Nd2 {[%emt 0:00:06]} O-O {[%emt 0:00:10]} 6. Qc2 {[%emt 0:00:23]} b6 {[%emt 0:00:19]} 7. Ngf3 {[%emt 0:00:36]} Bb7 {[%emt 0:00:15]} 8. O-O {[%emt 0:00:19]} a5 {[%emt 0:00:05]} 9. b3 {[%emt 0:01:23]} Be7 {[%emt 0:00:12]} 10. Bb2 {[%emt 0:00:06]} Na6 {[%emt 0:00:15]} 11. Rac1 {[%emt 0:00:50]} Rc8 {[%emt 0:00:12]} 12. cxd5 {[%emt 0:00:17]} exd5 {[%emt 0:00:05]} 13. Qf5 {[%emt 0:00:27]} c5 {[%emt 0:00:22]} 14. Rfd1 {[%emt 0:00:10]} Qe8 {[%emt 0:01:11]} 15. dxc5 {[%emt 0:00:36]} Nxc5 {[%emt 0:00:27]} 16. Ng5 {[%emt 0:00:38]} g6 {[%emt 0:02:04]} 17. Qb1 {[%emt 0:02:16]} Ne6 {[%emt 0:00:55]} 18. Nxe6 {[%emt 0:00:49]} fxe6 {[%emt 0:00:01]} 19. Nf3 {[%emt 0:00:03]} Ne4 {[%emt 0:00:21]} 20. Bd4 {[%emt 0:00:13]} Bc5 {[%emt 0:00:13]} 21. Qb2 {[%emt 0:00:21]} Qe7 {[%emt 0:00:34]} 22. Qa1 {[%emt 0:00:51]} Ba6 {[%emt 0:00:31]} 23. Bxc5 {[%emt 0:01:11]} bxc5 {[%emt 0:00:11]} 24. Re1 {[%emt 0:00:01]} a4 {[%emt 0:00:42]} 25. Qe5 {[%emt 0:00:35]} Rf5 {[%emt 0:00:15]} 26. Qb2 {[%emt 0:00:02]} Qd6 {[%emt 0:01:23]} 27. Nh4 {[%emt 0:00:23]} Rf7 {[%emt 0:00:28]} 28. Bxe4 {[%emt 0:00:18]} dxe4 {[%emt 0:00:01]} 29. Red1 {[%emt 0:00:02]} Qb6 {[%emt 0:00:13]} 30. Qe5 {[%emt 0:00:20]} c4 {[%emt 0:00:13]} 31. e3 {[%emt 0:00:09]} axb3 {[%emt 0:00:20]} 32. axb3 {[%emt 0:00:08]} cxb3 {[%emt 0:00:26]} 33. Rxc8+ {[%emt 0:01:10]} Bxc8 {[%emt 0:00:01]} 34. Qxe4 {[%emt 0:00:08]} b2 {[%emt 0:00:33]} 35. Qc2 {[%emt 0:00:45]} Rc7 {[%emt 0:00:43]} 36. Qb1 {[%emt 0:00:00]} Bb7 {[%emt 0:00:34]} 37. Nxg6 {[%emt 0:00:19]} Qc6 {[%emt 0:00:17]} 38. e4 {[%emt 0:00:10]} Qxe4 {[%emt 0:00:27]} 39. Rd8+ {[%emt 0:00:01]} Kf7 {[%emt 0:00:21]} 40. Ne5+ {[%emt 0:00:21]} Kg7 {[%emt 0:00:15]} 0-1

[Event "FIDE Womens World Cup 2021"]
[Site "Sochi"]
[Date "2021.07.17"]
[Round "2.6"]
[White "Cramling, Pia"]
[Black "Socko, Monika"]
[Result "1/2-1/2"]
[ECO "A04"]
[WhiteElo "2459"]
[BlackElo "2393"]
[Annotator "ChessBase"]
[PlyCount "91"]
[EventDate "2021.07.12"]
[EventType "k.o."]
[EventCountry "RUS"]
[SourceTitle "playchess.com"]
[Source "ChessBase"]
[SourceQuality "1"]
[TimeControl "600+10"]

1. Nf3 {[%emt 0:00:01]} c5 {[%emt 0:00:01]} 2. c4 {[%emt 0:00:01]} Nc6 {[%emt 0:00:01]} 3. Nc3 {[%emt 0:00:04]} e5 {[%emt 0:00:18]} 4. e3 {[%emt 0:00:02]} Nf6 {[%emt 0:00:04]} 5. Be2 {[%emt 0:00:14]} Be7 {[%emt 0:01:36]} 6. O-O {[%emt 0:00:25]} O-O {[%emt 0:00:05]} 7. d4 {[%emt 0:00:10]} d6 {[%emt 0:00:14]} 8. d5 {[%emt 0:00:59]} Nb8 {[%emt 0:00:02]} 9. e4 {[%emt 0:00:08]} Nbd7 {[%emt 0:00:01]} 10. Ne1 {[%emt 0:00:08]} Ne8 {[%emt 0:00:11]} 11. a3 {[%emt 0:00:07]} Bg5 {[%emt 0:00:10]} 12. Nd3 {[%emt 0:00:12]} g6 {[%emt 0:00:33]} 13. g3 {[%emt 0:00:35]} Ng7 {[%emt 0:00:24]} 14. Bxg5 {[%emt 0:01:18]} Qxg5 {[%emt 0:00:01]} 15. Qc1 {[%emt 0:00:02]} Qe7 {[%emt 0:00:05]} 16. f4 {[%emt 0:00:25]} exf4 {[%emt 0:00:16]} 17. gxf4 {[%emt 0:00:16]} f5 {[%emt 0:01:00]} 18. e5 {[%emt 0:01:22]} dxe5 {[%emt 0:00:45]} 19. fxe5 {[%emt 0:00:02]} Nxe5 {[%emt 0:00:42]} 20. Qe3 {[%emt 0:00:04]} Re8 {[%emt 0:00:01]} 21. Nxe5 {[%emt 0:00:47]} Qxe5 {[%emt 0:00:03]} 22. Qxc5 {[%emt 0:00:03]} f4 {[%emt 0:00:26]} 23. Qf2 {[%emt 0:00:17]} Bh3 {[%emt 0:00:32]} 24. Rfe1 {[%emt 0:00:03]} Qg5+ {[%emt 0:00:16]} 25. Kh1 {[%emt 0:00:04]} Nf5 {[%emt 0:00:02]} 26. Bf1 {[%emt 0:01:20]} Ng3+ {[%emt 0:02:20]} 27. hxg3 {[%emt 0:01:07]} fxg3 {[%emt 0:00:02]} 28. Qc2 {[%emt 0:01:58]} g2+ {[%emt 0:01:47]} 29. Bxg2 {[%emt 0:00:02]} Bxg2+ {[%emt 0:00:17]} 30. Kh2 {[%emt 0:00:18]} Rxe1 {[%emt 0:00:38]} 31. Rxe1 {[%emt 0:00:08]} Qh4+ {[%emt 0:00:01]} 32. Kxg2 {[%emt 0:00:02]} Qxe1 {[%emt 0:00:01]} 33. Ne4 {[%emt 0:00:19]} Rf8 {[%emt 0:00:08]} 34. Nf2 {[%emt 0:00:18]} Qe3 {[%emt 0:00:27]} 35. b3 {[%emt 0:00:45]} Qe5 {[%emt 0:00:20]} 36. Qd2 {[%emt 0:00:13]} Rf6 {[%emt 0:00:17]} 37. c5 {[%emt 0:00:19]} Rf5 {[%emt 0:00:16]} 38. d6 {[%emt 0:00:06]} Qxc5 {[%emt 0:00:33]} 39. Ne4 {[%emt 0:00:05]} Qb5 {[%emt 0:01:14]} 40. Qd1 {[%emt 0:01:04]} Qd7 {[%emt 0:00:15]} 41. Qd4 {[%emt 0:00:20]} Kf7 {[%emt 0:00:11]} 42. Qc4+ {[%emt 0:00:39]} Kg7 {[%emt 0:00:12]} 43. Qc3+ {[%emt 0:00:09]} Kf7 {[%emt 0:00:06]} 44. Qc4+ {[%emt 0:00:01]} Kf8 {[%emt 0:00:04]} 45. Qc3 {[%emt 0:00:06]} Kf7 {[%emt 0:00:28]} 46. Qc4+ 1/2-1/2